Workbook

Sheet 1. Info
AA1: 67 | AB1: =VLOOKUP(AA1, Z21:AA107, 2,0) -> PowerStream Inc. | AC1: =IF('3. Data_Input_Sheet'!M10=0, "", '3. Data_Input_Sheet'!M10) -> Settlement Agreement
AA20: Company Name
Z21: 1 | AA21: Algoma Power Inc.
B22: Name: | E22: Tom Barrett | Z22: 2 | AA22: Atikokan Hydro Inc.
Z23: 3 | AA23: Attawapiskat Power Corp.
B24: Title: | C24: Title: | E24: Manager, Rates & Applications | Z24: 4 | AA24: Bluewater Power Distribution Corporation
Z25: 5 | AA25: Brant County Power Inc.
B26: Phone Number: | E26: (905) 532-4640 | Z26: 6 | AA26: Brantford Power Inc.
Z27: 7 | AA27: Burlington Hydro Inc.
B28: Email Address: | E28: tom.barrett@powersrteam.ca | Z28: 8 | AA28: Cambridge and North Dumfries Hydro Inc.
Z29: 9 | AA29: Canadian Niagara Power Inc. - Eastern Ontario Power
Z30: 10 | AA30: Canadian Niagara Power Inc. - Fort Erie
Z31: 11 | AA31: Canadian Niagara Power Inc. - Port Colborne Hydro Inc.
Z32: 12 | AA32: Centre Wellington Hydro Ltd.
Z33: 13 | AA33: Chapleau Public Utilities Corporation
Z34: 14 | AA34: Chatham-Kent Hydro Inc.
Z35: 15 | AA35: Clinton Power Corporation
Z36: 16 | AA36: COLLUS Power Corporation
Z37: 17 | AA37: Cooperative Hydro Embrun Inc.
Z38: 18 | AA38: E.L.K. Energy Inc.
Z39: 19 | AA39: Enersource Hydro Mississauga Inc.
Z40: 20 | AA40: ENWIN Utilities Ltd.
Z41: 21 | AA41: Erie Thames Powerlines Corporation
Z42: 22 | AA42: Espanola Regional Hydro Distribution Corporation
Z43: 23 | AA43: Essex Powerlines Corporation
Z44: 24 | AA44: Festival Hydro Inc.
Z45: 25 | AA45: Festival Hydro Inc. - Hensall
Z46: 26 | AA46: Fort Albany Power Corporation
Z47: 27 | AA47: Fort Frances Power Corporation
Z48: 28 | AA48: Greater Sudbury Hydro Inc.
Z49: 29 | AA49: Grimsby Power Inc.
Z50: 30 | AA50: Guelph Hydro Electric Systems Inc.
Z51: 31 | AA51: Haldimand County Hydro Inc.
Z52: 32 | AA52: Halton Hills Hydro Inc.
Z53: 33 | AA53: Hearst Power Distribution Company Limited
Z54: 34 | AA54: Horizon Utilities Corporation
Z55: 35 | AA55: Hydro 2000 Inc.
Z56: 36 | AA56: Hydro Hawkesbury Inc.
Z57: 37 | AA57: Hydro One Brampton Networks Inc.
Z58: 38 | AA58: Hydro Ottawa Limited
Z59: 39 | AA59: Innisfil Hydro Distribution Systems Limited
Z60: 40 | AA60: Kashechewan Power Corporation
Z61: 41 | AA61: Kenora Hydro Electric Corporation Ltd.
Z62: 42 | AA62: Kingston Hydro Corporation
Z63: 43 | AA63: Kitchener-Wilmot Hydro Inc.
Z64: 44 | AA64: Lakefront Utilities Inc.
Z65: 45 | AA65: Lakeland Power Distribution Ltd.
Z66: 46 | AA66: London Hydro Inc.
Z67: 47 | AA67: Middlesex Power Distribution Corporation
Z68: 48 | AA68: Middlesex Power Distribution Corporation - Dutton
Z69: 49 | AA69: Middlesex Power Distribution Corporation - Newbury
Z70: 50 | AA70: Midland Power Utility Corporation
Z71: 51 | AA71: Milton Hydro Distribution inc.
Z72: 52 | AA72: Newmarket - Tay Power Distribution Ltd. - Newmarket
Z73: 53 | AA73: Newmarket - Tay Power Distribution Ltd. - Tay
Z74: 54 | AA74: Niagara Peninsula Energy Inc. - Niagara Falls
Z75: 55 | AA75: Niagara Peninsula Energy Inc. - Peninsula West
Z76: 56 | AA76: Niagara-on-the-Lake Hydro Inc.
Z77: 57 | AA77: Norfolk Power Distribution Inc.
Z78: 58 | AA78: North Bay Hydro Distribution Limited
Z79: 59 | AA79: Northern Ontario Wires Inc.
Z80: 60 | AA80: Oakville Hydro Electricity Distribution Inc.
Z81: 61 | AA81: Orangeville Hydro Limited
Z82: 62 | AA82: Orillia Power Distribution Corporation
Z83: 63 | AA83: Oshawa PUC Networks Inc.
Z84: 64 | AA84: Ottawa River Power Corporation
Z85: 65 | AA85: Parry Sound Power Corporation
Z86: 66 | AA86: Peterborough Distribution Incorporated
Z87: 67 | AA87: PowerStream Inc.
Z88: 68
Z89: 69 | AA89: PUC Distribution Inc.
Z90: 70 | AA90: Renfrew Hydro Inc.
Z91: 71 | AA91: Rideau St. Lawrence Distribution Inc.
Z92: 72 | AA92: Sioux Lookout Hydro Inc.
Z93: 73 | AA93: St. Thomas Energy Inc.
Z94: 74 | AA94: Thunder Bay Hydro Electricity Distribution Inc.
Z95: 75 | AA95: Tillsonburg Hydro Inc.
Z96: 76 | AA96: Toronto Hydro-Electric System Limited
Z97: 77 | AA97: Veridian Connections Inc.
Z98: 78 | AA98: Veridian Connections Inc. - Gravenhurst
Z99: 79 | AA99: Wasaga Distribution Inc.
Z100: 80 | AA100: Waterloo North Hydro Inc.
Z101: 81 | AA101: Welland Hydro-Electric System Corp.
Z102: 82 | AA102: Wellington North Power Inc.
Z103: 83 | AA103: West Coast Huron Energy Inc.
Z104: 84 | AA104: West Perth Power Inc.
Z105: 85 | AA105: Westario Power Inc.
Z106: 86 | AA106: Whitby Hydro Electric Corporation
Z107: 87 | AA107: Woodstock Hydro Services Inc.

Sheet 2. Table of Contents
P1: 1. Info
D10: 1. Info | I10: 7. Cost_of_Capital
D12: 2. Table of Contents | I12: 8. Rev_Def_Suff
D14: 3. Data_Input_Sheet | I14: 9. Rev_Reqt
D16: 4. Rate_Base | I16: 10A. Bill Impacts - Residential
D18: 5. Utility Income | I18: 10B. Bill Impacts - GS_LT_50kW
D20: 6. Taxes_PILs
A23: Notes:
A24: (1) | B24: Pale green cells represent inputs
A25: (2) | B25: Pale green boxes at the bottom of each page are for additional notes
A26: (3) | B26: Pale yellow cells represent drop-down lists
A27: (4) | B27: Please note that this model uses MACROS. Before starting, please ensure that macros have been enabled.
A28: (5) | B28: Completed versions of the Revenue Requirement Work Form are required to be filed in working Microsoft Excel format.

Sheet 3. Data_Input_Sheet
U1: =CONCATENATE('2. Table of Contents'!$F$6," ",'2. Table of Contents'!$G$6) -> 
E10: Initial Application | I10: =IF(ISBLANK(M10),"","Adjustments") -> Adjustments | M10: Settlement Agreement | O10: (6) | Q10: =IF(ISBLANK(M10),"","Adjustments") -> Adjustments | U10: Per Board Decision
B13: 1 | C13: Rate Base
C14: Gross Fixed Assets (average) | E14: 805987959.7 | G14: (8) | I14: -2936675 | M14: =IF(ISBLANK(E14),0,E14+I14) -> 803051284.7 | Q14: -7184145 | U14: =IF(ISBLANK(E14),"",E14+I14+Q14) -> 795867139.7
C15: Accumulated Depreciation (average) | E15: -86642887.81 | G15: (5) | I15: 0 | M15: =IF(ISBLANK(E15),0,E15+I15) -> -86642887.81 | Q15: 941500.4716 | U15: =IF(ISBLANK(E15),"",E15+I15+Q15) -> -85701387.34
C16: Allowance for Working Capital:
C17: Controllable Expenses | E17: 86041000 | I17: -6041000 | M17: =IF(ISBLANK(E17),0,E17+I17) -> 80000000 | Q17: 0 | U17: =IF(ISBLANK(E17),"",E17+I17+Q17) -> 80000000
C18: Cost of Power | E18: 857779706 | M18: =IF(ISBLANK(E18),0,E18+I18) -> 857779706 | Q18: 0 | U18: =IF(ISBLANK(E18),"",E18+I18+Q18) -> 857779706
C19: Working Capital Rate (%) | E19: 0.13 | M19: =IF(ISBLANK(E19),0,E19) -> 0.13 | U19: =IF(ISBLANK(M19),IF(ISBLANK(E19),0,E19),M19) -> 0.13
B21: 2 | C21: Utility Income
C22: Operating Revenues:
C23: Distribution Revenue at Current Rates | E23: 162044558.2 | I23: =IF(ISBLANK(M23),"",IF(ISBLANK(E23),"",M23-E23)) -> 139518.0368 | M23: 162184076.2 | Q23: =IF(ISBLANK(U23),"",IF(ISBLANK(M23),"",U23-M23)) -> 0 | U23: =M23 -> 162184076.2
C24: Distribution Revenue at Proposed Rates | E24: 169870651.3 | I24: =IF(ISBLANK(M24),"",IF(ISBLANK(E24),"",M24-E24)) -> -7642643.862 | M24: 162228007.4 | Q24: =IF(ISBLANK(U24),"",IF(ISBLANK(M24),"",U24-M24)) -> -8003233.123 | U24: 154224774.3
C25: Other Revenue:
C26: Specific Service Charges | E26: 3385000 | I26: =IF(ISBLANK(M26),"",IF(ISBLANK(E26),"",M26-E26)) -> 0 | M26: 3385000 | Q26: =IF(ISBLANK(U26),"",IF(ISBLANK(M26),"",U26-M26)) -> 0 | U26: =M26 -> 3385000
C27: Late Payment Charges | E27: 2500000 | I27: =IF(ISBLANK(M27),"",IF(ISBLANK(E27),"",M27-E27)) -> 0 | M27: 2500000 | Q27: =IF(ISBLANK(U27),"",IF(ISBLANK(M27),"",U27-M27)) -> 0 | U27: =M27 -> 2500000
C28: Other Distribution Revenue | E28: 2032000 | I28: =IF(ISBLANK(M28),"",IF(ISBLANK(E28),"",M28-E28)) -> 0 | M28: 2032000 | Q28: =IF(ISBLANK(U28),"",IF(ISBLANK(M28),"",U28-M28)) -> 0 | U28: =M28 -> 2032000
C29: Other Income and Deductions | E29: 1145000 | I29: =IF(ISBLANK(M29),"",IF(ISBLANK(E29),"",M29-E29)) -> 782598.2725 | M29: 1927598.273 | Q29: =IF(ISBLANK(U29),"",IF(ISBLANK(M29),"",U29-M29)) -> 0 | U29: =M29 -> 1927598.273
D31: Total Revenue Offsets | E31: =SUM(E26:E29) -> 9062000 | G31: (7) | I31: =IF(ISBLANK(M31),"",IF(ISBLANK(E31),"",M31-E31)) -> 782598.2725 | M31: =SUM(M26:M29) -> 9844598.273 | Q31: =IF(ISBLANK(U31),"",IF(ISBLANK(M31),"",U31-M31)) -> 0 | U31: =SUM(U26:U29) -> 9844598.273
C33: Operating Expenses:
C34: OM+A Expenses | E34: =E17-E36 -> 84245961 | I34: =I17 -> -6041000 | M34: =IF(ISBLANK(E34),"",E34+I34) -> 78204961 | U34: =IF(ISBLANK(E34),"",E34+I34+Q34) -> 78204961
C35: Depreciation/Amortization | E35: 36607421.64 | G35: (9) | I35: -75990 | M35: =IF(ISBLANK(E35),"",E35+I35) -> 36531431.64 | Q35: -3679036.247 | U35: =IF(ISBLANK(E35),"",E35+I35+Q35) -> 32852395.4
C36: Property taxes | E36: 1795039 | M36: =IF(ISBLANK(E36),"",E36+I36) -> 1795039 | U36: =IF(ISBLANK(E36),"",E36+I36+Q36) -> 1795039
C37: Capital taxes | E37: =IF(ISBLANK(E46),"",E46) ->  | M37: =IF(ISBLANK(M46),"",M46) ->  | U37: =IF(ISBLANK(U46),"",U46) -> 
C38: Other expenses | M38: =IF(ISBLANK(E38),"",E38+I38) ->  | U38: =IF(ISBLANK(E38),"",E38+I38+Q38) -> 
B40: 3 | C40: Taxes/PILs
C41: Taxable Income:
D42: Adjustments required to arrive at taxable income | E42: -21082904 | G42: (3) | M42: -20849303.67 | U42: -22732304
C43: Utility Income Taxes and Rates:
C44: Income taxes (not grossed up) | E44: 1818117 | M44: 1827039.303 | U44: 1100115.074
C45: Income taxes (grossed up) | E45: =IF(ISBLANK(E44),"",E44/(1-SUM(E47:E48))) -> 2461463.009 | M45: =IF(ISBLANK(M44),"",M44/(1-SUM(M47:M48))) -> 2473664.771 | U45: =IF(ISBLANK(U44),"",U44/(1-SUM(U47:U48))) -> 1486626.89
C46: Capital Taxes
C47: Federal tax (%) | E47: 0.15 | M47: 0.15 | U47: 0.15
C48: Provincial tax (%) | E48: 0.1113673277 | M48: 0.1114038391 | U48: 0.1099924822
C49: Income Tax Credits | E49: -710000 | M49: -717000 | U49: -717000
B51: 4 | C51: Capitalization/Cost of Capital
C52: Capital Structure:
C53: Long-term debt Capitalization Ratio (%) | E53: 0.56 | M53: =E53 -> 0.56 | U53: 0.56
C54: Short-term debt Capitalization Ratio (%) | E54: 0.04 | G54: (2) | M54: =E54 -> 0.04 | O54: (2) | U54: 0.04 | W54: (2)
C55: Common Equity Capitalization Ratio (%) | E55: 0.4 | M55: =E55 -> 0.4 | U55: 0.4
C56: Prefered Shares Capitalization Ratio (%)
E57: =SUM(E53:E56) -> 1 | M57: =SUM(M53:M56) -> 1 | U57: =SUM(U53:U56) -> 1
E58: =IF(ISBLANK(E55),"",IF(SUM(E53:E56)=100%,"","Capital Structure must total 100%")) ->  | M58: =IF(ISBLANK(M55),"",IF(SUM(M53:M56)=100%,"","Capital Structure must total 100%")) ->  | U58: =IF(ISBLANK(U55),"",IF(SUM(U53:U56)=100%,"","Capital Structure must total 100%")) -> 
C59: Cost of Capital
C60: Long-term debt Cost Rate (%) | E60: 0.04751291884 | M60: 0.04641112293 | U60: 0.04145449304
C61: Short-term debt Cost Rate (%) | E61: 0.0208 | M61: =E61 -> 0.0208 | U61: 0.0208
C62: Common Equity Cost Rate (%) | E62: 0.0912 | M62: =E62 -> 0.0912 | U62: 0.0893
C63: Prefered Shares Cost Rate (%)
A65: Notes:
B66: General | C66: Data inputs are required on Sheets 3, 10A and 10B. Data from Sheet 3 will automatically complete calculations on sheets 4 through 9 (Rate Base through Revenue Requirement). Sheets 4 through 9 do not require any inputs except for notes that the Applicant may wish to enter to support the results. Pale green cells are available on sheets 4 through 9 to enter both footnotes beside key cells and the related text for the notes at the bottom of each sheet.
B67: (1) | C67: All inputs are in dollars ($) except where inputs are individually identified as percentages (%)
B68: (2) | C68: 4.0% unless an Applicant has proposed or been approved for another amount.
B69: (3) | C69: Net of addbacks and deductions to arrive at taxable income.
B70: (4) | C70: Average of Gross Fixed Assets at beginning and end of the Test Year
B71: (5) | C71: Average of Accumulated Depreciation at the beginning and end of the Test Year. Enter as a negative amount.
B72: (6) | C72: Select option from drop-down list by clicking on cell M10. This column allows for the application update reflecting the end of discovery or Argument-in-Chief. Also, the outcome of any Settlement Process can be reflected.
B73: (7) | C73: Input total revenue offsets for deriving the base revenue requirement from the service revenue requirement
B74: (8) | C74: Gross Fixed assets amount is adjusted by the amounts in PP&E deferral account and GEA capital deferral accounts
B75: (9) | C75: Depreciation amount is adjusted by the depreciation of amounts in PP&E deferral and GEA capital deferral accounts
B76: (10) | C76: the "Initial Application" amounts reflect the updates made as a result of Staff Interrogatory #5, on August 31, 2012
B77: (11) | C77: The GFA amount Settlement adjustment - due to the CC adjustment for $2M in 2012 and 2013

Sheet 4. Rate_Base
B10: Line No. | D10: Particulars | G10: Initial Application | K10: =IF(ISBLANK('3. Data_Input_Sheet'!M10:M11),"","Adjustments") -> Adjustments | O10: =IF(ISBLANK('3. Data_Input_Sheet'!M10:M11),"",'3. Data_Input_Sheet'!M10:M11) -> Settlement Agreement | S10: =IF(ISBLANK('3. Data_Input_Sheet'!Q10:Q11),"",'3. Data_Input_Sheet'!Q10:Q11) -> Adjustments | W10: ='3. Data_Input_Sheet'!U10 -> Per Board Decision
B12: 1 | D12: Gross Fixed Assets (average) | E12: (3) | G12: ='3. Data_Input_Sheet'!E14 -> 805987959.7 | K12: ='3. Data_Input_Sheet'!I14 -> -2936675 | O12: =G12+K12 -> 803051284.7 | S12: ='3. Data_Input_Sheet'!Q14 -> -7184145 | W12: =G12+K12+S12 -> 795867139.7
B13: 2 | D13: Accumulated Depreciation (average) | E13: (3) | G13: ='3. Data_Input_Sheet'!E15 -> -86642887.81 | K13: ='3. Data_Input_Sheet'!I15 -> 0 | O13: =G13+K13 -> -86642887.81 | S13: ='3. Data_Input_Sheet'!Q15 -> 941500.4716 | W13: =G13+K13+S13 -> -85701387.34
B14: 3 | D14: Net Fixed Assets (average) | E14: (3) | G14: =SUM(G12:G13) -> 719345071.9 | K14: =SUM(K12:K13) -> -2936675 | O14: =SUM(O12:O13) -> 716408396.9 | S14: =SUM(S12:S13) -> -6242644.528 | W14: =SUM(W12:W13) -> 710165752.3
B16: 4 | D16: Allowance for Working Capital | E16: (1) | G16: =G29 -> 122696691.8 | K16: =K29 -> -785330 | O16: =O29 -> 121911361.8 | S16: =S29 -> 0 | W16: =W29 -> 121911361.8
D17: Total Rate Base | G17: =G16+G14 -> 842041763.6 | K17: =K16+K14 -> -3722005 | O17: =O16+O14 -> 838319758.6 | S17: =S16+S14 -> -6242644.528 | W17: =W14+W16 -> 832077114.1
B18: 5
C21: (1)
B23: 6 | D23: Controllable Expenses | G23: ='3. Data_Input_Sheet'!E17 -> 86041000 | K23: ='3. Data_Input_Sheet'!I17 -> -6041000 | O23: =G23+K23 -> 80000000 | S23: ='3. Data_Input_Sheet'!Q17 -> 0 | W23: =G23+K23+S23 -> 80000000
B24: 7 | D24: Cost of Power | G24: ='3. Data_Input_Sheet'!E18 -> 857779706 | K24: ='3. Data_Input_Sheet'!I18 -> 0 | O24: =G24+K24 -> 857779706 | S24: ='3. Data_Input_Sheet'!Q18 -> 0 | W24: =G24+K24+S24 -> 857779706
B25: 8 | D25: Working Capital Base | G25: =SUM(G23:G24) -> 943820706 | K25: =K23+K24 -> -6041000 | O25: =SUM(O23:O24) -> 937779706 | S25: =S23+S24 -> 0 | W25: =SUM(W23:W24) -> 937779706
B27: 9 | D27: Working Capital Rate % | E27: (2) | G27: ='3. Data_Input_Sheet'!E19 -> 0.13 | K27: =O27-G27 -> 0 | O27: ='3. Data_Input_Sheet'!M19 -> 0.13 | S27: =W27-O27 -> 0 | W27: ='3. Data_Input_Sheet'!U19 -> 0.13
B29: 10 | D29: Working Capital Allowance | G29: =G25*G27 -> 122696691.8 | K29: =O29-G29 -> -785330 | O29: =O25*O27 -> 121911361.8 | S29: =W29-O29 -> 0 | W29: =W25*W27 -> 121911361.8
B32: Notes
B33: (2) | D33: Some Applicants may have a unique rate as a result of a lead-lag study.
B34: (3) | D34: Average of opening and closing balances for the year.

Sheet 5. Utility Income
B10: Line No. | D10: Particulars | F10: Initial Application | J10: =IF(N10="","","Adjustments") -> Adjustments | N10: =IF(ISBLANK('3. Data_Input_Sheet'!M10:M11),"",'3. Data_Input_Sheet'!M10:M11) -> Settlement Agreement | R10: =IF(N10="","","Adjustments") -> Adjustments | V10: ='3. Data_Input_Sheet'!U10 -> Per Board Decision
D12: Operating Revenues:
B13: 1 | D13: Distribution Revenue (at Proposed Rates) | F13: ='3. Data_Input_Sheet'!E24 -> 169870651.3 | J13: =N13-F13 -> -7642643.862 | N13: ='3. Data_Input_Sheet'!M24 -> 162228007.4 | R13: =V13-N13 -> -8003233.123 | V13: =IF(ISBLANK('3. Data_Input_Sheet'!U24),'5. Utility Income'!N13,'3. Data_Input_Sheet'!U24) -> 154224774.3
B14: 2 | D14: Other Revenue | E14: (1) | F14: =F45 -> 9062000 | J14: =N14-F14 -> 782598.2725 | N14: =N45 -> 9844598.273 | R14: =V14-N14 -> 0 | V14: =V45 -> 9844598.273
F15: =SUM(F13:F14) -> 178932651.3 | J15: =SUM(J13:J14) -> -6860045.59 | N15: =SUM(N13:N14) -> 172072605.7 | R15: =SUM(R13:R14) -> -8003233.123 | V15: =SUM(V13:V14) -> 164069372.6
B16: 3 | D16: Total Operating Revenues
D18: Operating Expenses:
B19: 4 | D19: OM+A Expenses | F19: ='3. Data_Input_Sheet'!E34 -> 84245961 | J19: ='3. Data_Input_Sheet'!I34 -> -6041000 | N19: ='3. Data_Input_Sheet'!M34 -> 78204961 | R19: ='3. Data_Input_Sheet'!Q34 -> 0 | V19: ='3. Data_Input_Sheet'!U34 -> 78204961
B20: 5 | D20: Depreciation/Amortization | F20: ='3. Data_Input_Sheet'!E35 -> 36607421.64 | J20: ='3. Data_Input_Sheet'!I35 -> -75990 | N20: ='3. Data_Input_Sheet'!M35 -> 36531431.64 | R20: ='3. Data_Input_Sheet'!Q35 -> -3679036.247 | V20: ='3. Data_Input_Sheet'!U35 -> 32852395.4
B21: 6 | D21: Property taxes | F21: ='3. Data_Input_Sheet'!E36 -> 1795039 | J21: ='3. Data_Input_Sheet'!I36 -> 0 | N21: ='3. Data_Input_Sheet'!M36 -> 1795039 | R21: ='3. Data_Input_Sheet'!Q36 -> 0 | V21: ='3. Data_Input_Sheet'!U36 -> 1795039
B22: 7 | D22: Capital taxes | F22: ='6. Taxes_PILs'!G23 -> 0 | J22: =N22-F22 -> 0 | N22: ='6. Taxes_PILs'!K23 -> 0 | R22: =V22-N22 -> 0 | V22: ='6. Taxes_PILs'!O23 -> 0
B23: 8 | D23: Other expense | F23: ='3. Data_Input_Sheet'!E38 -> 0 | J23: ='3. Data_Input_Sheet'!I38 -> 0 | N23: ='3. Data_Input_Sheet'!M38 ->  | R23: ='3. Data_Input_Sheet'!Q38 -> 0 | V23: ='3. Data_Input_Sheet'!U38 -> 
F24: =SUM(F19:F23) -> 122648421.6 | J24: =SUM(J19:J23) -> -6116990 | N24: =SUM(N19:N23) -> 116531431.6 | R24: =SUM(R19:R23) -> -3679036.247 | V24: =SUM(V19:V23) -> 112852395.4
B25: 9 | D25: Subtotal (lines 4 to 8)
B27: 10 | D27: Deemed Interest Expense | F27: ='7. Cost_of_Capital'!P19 -> 23104981.45 | J27: =N27-F27 -> -619377.0451 | N27: ='7. Cost_of_Capital'!P35 -> 22485604.41 | R27: =V27-N27 -> -2477048.686 | V27: ='7. Cost_of_Capital'!P51 -> 20008555.72
B29: 11 | D29: Total Expenses (lines 9 to 10) | F29: =F24+F27 -> 145753403.1 | J29: =J27+J24 -> -6736367.045 | N29: =N27+N24 -> 139017036.1 | R29: =R27+R24 -> -6156084.933 | V29: =V24+V27 -> 132860951.1
F30: =F15-F29 -> 33179248.19 | J30: =J15-J29 -> -123678.5448 | N30: =N15-N29 -> 33055569.64 | R30: =R15-R29 -> -1847148.19 | V30: =V15-V29 -> 31208421.45
B31: 12 | D31: Utility income before income taxes
F32: ='6. Taxes_PILs'!G29 -> 2461463.009 | J32: =N32-F32 -> 12201.76182 | N32: ='6. Taxes_PILs'!K29 -> 2473664.771 | R32: =V32-N32 -> -987037.881 | V32: =IF('6. Taxes_PILs'!O29=0,N32,'6. Taxes_PILs'!O29) -> 1486626.89
B33: 13 | D33: Income taxes (grossed-up)
F34: =F30-F32 -> 30717785.18 | J34: =J30-J32 -> -135880.3067 | N34: =N30-N32 -> 30581904.87 | R34: =R30-R32 -> -860110.309 | V34: =V30-V32 -> 29721794.56
B35: 14 | D35: Utility net income
B39: Notes
B41: (1) | D41: Specific Service Charges | F41: ='3. Data_Input_Sheet'!E26 -> 3385000 | J41: ='3. Data_Input_Sheet'!I26 -> 0 | N41: ='3. Data_Input_Sheet'!M26 -> 3385000 | R41: ='3. Data_Input_Sheet'!Q26 -> 0 | V41: =IF(ISBLANK('3. Data_Input_Sheet'!U26),N41,'3. Data_Input_Sheet'!U26) -> 3385000
D42: Late Payment Charges | F42: ='3. Data_Input_Sheet'!E27 -> 2500000 | J42: ='3. Data_Input_Sheet'!I27 -> 0 | N42: ='3. Data_Input_Sheet'!M27 -> 2500000 | R42: ='3. Data_Input_Sheet'!Q27 -> 0 | V42: =IF(ISBLANK('3. Data_Input_Sheet'!U27),N42,'3. Data_Input_Sheet'!U27) -> 2500000
D43: Other Distribution Revenue | F43: ='3. Data_Input_Sheet'!E28 -> 2032000 | J43: ='3. Data_Input_Sheet'!I28 -> 0 | N43: ='3. Data_Input_Sheet'!M28 -> 2032000 | R43: ='3. Data_Input_Sheet'!Q28 -> 0 | V43: =IF(ISBLANK('3. Data_Input_Sheet'!U28),N43,'3. Data_Input_Sheet'!U28) -> 2032000
D44: Other Income and Deductions | F44: ='3. Data_Input_Sheet'!E29 -> 1145000 | J44: ='3. Data_Input_Sheet'!I29 -> 782598.2725 | N44: ='3. Data_Input_Sheet'!M29 -> 1927598.273 | R44: ='3. Data_Input_Sheet'!Q29 -> 0 | V44: =IF(ISBLANK('3. Data_Input_Sheet'!U29),N44,'3. Data_Input_Sheet'!U29) -> 1927598.273
F45: =SUM(F41:F44) -> 9062000 | J45: =SUM(J41:J44) -> 782598.2725 | N45: =SUM(N41:N44) -> 9844598.273 | R45: =SUM(R41:R44) -> 0 | V45: =SUM(V41:V44) -> 9844598.273
D46: Total Revenue Offsets

Sheet 6. Taxes_PILs
B10: Line No. | D10: Particulars | G10: Application | K10: =IF(ISBLANK('3. Data_Input_Sheet'!M10:M11),"",'3. Data_Input_Sheet'!M10:M11) -> Settlement Agreement | O10: ='3. Data_Input_Sheet'!U10 -> Per Board Decision
D12: Determination of Taxable Income
B14: 1 | D14: Utility net income before taxes | G14: ='7. Cost_of_Capital'!P22 -> 30717683.54 | K14: ='7. Cost_of_Capital'!P38 -> 30581904.79 | O14: ='7. Cost_of_Capital'!P54 -> 29721794.52
B16: 2 | D16: Adjustments required to arrive at taxable utility income | G16: ='3. Data_Input_Sheet'!E42 -> -21082904 | K16: ='3. Data_Input_Sheet'!M42 -> -20849303.67 | O16: =IF(ISBLANK('3. Data_Input_Sheet'!U42),G16,'3. Data_Input_Sheet'!U42) -> -22732304
B18: 3 | D18: Taxable income | G18: =G14+G16 -> 9634779.537 | K18: =K14+K16 -> 9732601.126 | O18: =O14+O16 -> 6989490.516
D20: Calculation of Utility income Taxes
B22: 4 | D22: Income taxes | G22: ='3. Data_Input_Sheet'!E44 -> 1818117 | K22: =IF(ISBLANK('3. Data_Input_Sheet'!M44),'6. Taxes_PILs'!G22,'3. Data_Input_Sheet'!M44) -> 1827039.303 | O22: =IF(ISBLANK('3. Data_Input_Sheet'!U44),'6. Taxes_PILs'!K22,'3. Data_Input_Sheet'!U44) -> 1100115.074
B23: 5 | D23: Capital taxes | G23: ='3. Data_Input_Sheet'!E46 -> 0 | K23: =IF(ISBLANK('3. Data_Input_Sheet'!M46),'6. Taxes_PILs'!G23,'3. Data_Input_Sheet'!M46) -> 0 | O23: =IF(ISBLANK('3. Data_Input_Sheet'!U46),'6. Taxes_PILs'!K23,'3. Data_Input_Sheet'!U46) -> 0
G24: =SUM(G22:G23) -> 1818117 | K24: =SUM(K22:K23) -> 1827039.303 | O24: =SUM(O22:O23) -> 1100115.074
B25: 6 | D25: Total taxes
B27: 7 | D27: Gross-up of Income Taxes | G27: =(G22/(1-G39))-G22 -> 643346.0088 | K27: =(K22/(1-K39))-K22 -> 646625.4676 | O27: =(O22/(1-O39))-O22 -> 386511.8151
B29: 8 | D29: Grossed-up Income Taxes | G29: =G22+G27 -> 2461463.009 | K29: =K22+K27 -> 2473664.771 | O29: =O22+O27 -> 1486626.89
B31: 9 | D31: PILs / tax Allowance (Grossed-up Income taxes + Capital taxes) | G31: =G24+G27 -> 2461463.009 | K31: =K27+K24 -> 2473664.771 | O31: =O27+O24 -> 1486626.89
B33: 10 | D33: Other tax Credits | G33: ='3. Data_Input_Sheet'!E49 -> -710000 | K33: =IF(ISBLANK('3. Data_Input_Sheet'!M49),G33,'3. Data_Input_Sheet'!M49) -> -717000 | O33: =IF(ISBLANK('3. Data_Input_Sheet'!U49),K33,'3. Data_Input_Sheet'!U49) -> -717000
D35: Tax Rates
B37: 11 | D37: Federal tax (%) | G37: ='3. Data_Input_Sheet'!E47 -> 0.15 | K37: =IF(ISBLANK('3. Data_Input_Sheet'!M47),G37,'3. Data_Input_Sheet'!M47) -> 0.15 | O37: =IF(ISBLANK('3. Data_Input_Sheet'!U47),K37,'3. Data_Input_Sheet'!U47) -> 0.15
B38: 12 | D38: Provincial tax (%) | G38: ='3. Data_Input_Sheet'!E48 -> 0.1113673277 | K38: =IF(ISBLANK('3. Data_Input_Sheet'!M48),G38,'3. Data_Input_Sheet'!M48) -> 0.1114038391 | O38: =IF(ISBLANK('3. Data_Input_Sheet'!U48),K38,'3. Data_Input_Sheet'!U48) -> 0.1099924822
B39: 13 | D39: Total tax rate (%) | G39: =G37+G38 -> 0.2613673277 | K39: =K37+K38 -> 0.2614038391 | O39: =O37+O38 -> 0.2599924822
B42: Notes
D43: Capital Taxes not applicable after July 1, 2010 (i.e. for 2011 and later test years)

Sheet 7. Cost_of_Capital
B11: Line No. | D11: Particulars | F11: Capitalization Ratio | L11: Cost Rate | P11: Return
F15: (%) | J15: ($) | L15: (%) | P15: ($)
D16: Debt
B17: 1 | D17: Long-term Debt | F17: ='3. Data_Input_Sheet'!E53 -> 0.56 | J17: =$J$26*F17 -> 471543387.6 | L17: ='3. Data_Input_Sheet'!E60 -> 0.04751291884 | P17: =L17*J17 -> 22404402.71
B18: 2 | D18: Short-term Debt | F18: ='3. Data_Input_Sheet'!E54 -> 0.04 | J18: =$J$26*F18 -> 33681670.55 | L18: ='3. Data_Input_Sheet'!E61 -> 0.0208 | P18: =L18*J18 -> 700578.7473
B19: 3 | D19: Total Debt | F19: =SUM(F17:F18) -> 0.6 | J19: =SUM(J17:J18) -> 505225058.2 | L19: =IF(F19=0,0,SUMPRODUCT(F17:F18,L17:L18)/F19) -> 0.04573205758 | P19: =SUM(P17:P18) -> 23104981.45
D21: Equity
B22: 4 | D22: Common Equity | F22: ='3. Data_Input_Sheet'!E55 -> 0.4 | J22: =$J$26*F22 -> 336816705.5 | L22: ='3. Data_Input_Sheet'!E62 -> 0.0912 | P22: =L22*J22 -> 30717683.54
B23: 5 | D23: Preferred Shares | F23: ='3. Data_Input_Sheet'!E56 -> 0 | J23: =$J$26*F23 -> 0 | L23: ='3. Data_Input_Sheet'!E63 -> 0 | P23: =L23*J23 -> 0
B24: 6 | D24: Total Equity | F24: =SUM(F22:F23) -> 0.4 | J24: =SUM(J22:J23) -> 336816705.5 | L24: =IF(F24=0,0,SUMPRODUCT(F22:F23,L22:L23)/F24) -> 0.0912 | P24: =SUM(P22:P23) -> 30717683.54
B26: 7 | D26: Total | F26: =SUM(F19,F24) -> 1 | J26: ='4. Rate_Base'!G17 -> 842041763.6 | L26: =(L19*F19)+(L24*F24) -> 0.06391923455 | P26: =P19+P24 -> 53822664.99
F31: (%) | J31: ($) | L31: (%) | P31: ($)
D32: Debt
B33: 1 | D33: Long-term Debt | F33: ='3. Data_Input_Sheet'!M53 -> 0.56 | J33: =$J$42*F33 -> 469459064.8 | L33: ='3. Data_Input_Sheet'!M60 -> 0.04641112293 | P33: =L33*J33 -> 21788122.37
B34: 2 | D34: Short-term Debt | F34: ='3. Data_Input_Sheet'!M54 -> 0.04 | J34: =$J$42*F34 -> 33532790.35 | L34: ='3. Data_Input_Sheet'!M61 -> 0.0208 | P34: =L34*J34 -> 697482.0392
B35: 3 | D35: Total Debt | F35: =SUM(F33:F34) -> 0.6 | J35: =SUM(J33:J34) -> 502991855.2 | L35: =IF(F35=0,0,SUMPRODUCT(F33:F34,L33:L34)/F35) -> 0.04470371474 | P35: =SUM(P33:P34) -> 22485604.41
D37: Equity
B38: 4 | D38: Common Equity | F38: ='3. Data_Input_Sheet'!M55 -> 0.4 | J38: =$J$42*F38 -> 335327903.5 | L38: ='3. Data_Input_Sheet'!M62 -> 0.0912 | P38: =L38*J38 -> 30581904.79
B39: 5 | D39: Preferred Shares | F39: ='3. Data_Input_Sheet'!M56 -> 0 | J39: =$J$42*F39 -> 0 | L39: ='3. Data_Input_Sheet'!M63 -> 0 | P39: =L39*J39 -> 0
B40: 6 | D40: Total Equity | F40: =SUM(F38:F39) -> 0.4 | J40: =SUM(J38:J39) -> 335327903.5 | L40: =IF(F40=0,0,SUMPRODUCT(F38:F39,L38:L39)/F40) -> 0.0912 | P40: =SUM(P38:P39) -> 30581904.79
B42: 7 | D42: Total | F42: =F35+F40 -> 1 | J42: ='4. Rate_Base'!O17 -> 838319758.6 | L42: =(L35*F35)+(L40*F40) -> 0.06330222884 | P42: =P35+P40 -> 53067509.2
F47: (%) | J47: ($) | L47: (%) | P47: ($)
D48: Debt
B49: 8 | D49: Long-term Debt | F49: =IF(ISBLANK('3. Data_Input_Sheet'!U53),F33,'3. Data_Input_Sheet'!U53) -> 0.56 | J49: =$J$58*F49 -> 465963183.9 | L49: =IF(ISBLANK('3. Data_Input_Sheet'!U60),L17,'3. Data_Input_Sheet'!U60) -> 0.04145449304 | P49: =L49*J49 -> 19316267.56
B50: 9 | D50: Short-term Debt | F50: =IF(ISBLANK('3. Data_Input_Sheet'!U54),F34,'3. Data_Input_Sheet'!U54) -> 0.04 | J50: =$J$58*F50 -> 33283084.56 | L50: =IF(ISBLANK('3. Data_Input_Sheet'!U61),L18,'3. Data_Input_Sheet'!U61) -> 0.0208 | P50: =L50*J50 -> 692288.1589
B51: 10 | D51: Total Debt | F51: =SUM(F49:F50) -> 0.6 | J51: =SUM(J49:J50) -> 499246268.5 | L51: =IF(F51=0,0,SUMPRODUCT(F49:F50,L49:L50)/F51) -> 0.04007752684 | P51: =SUM(P49:P50) -> 20008555.72
D53: Equity
B54: 11 | D54: Common Equity | F54: =IF(ISBLANK('3. Data_Input_Sheet'!U55),F38,'3. Data_Input_Sheet'!U55) -> 0.4 | J54: =$J$58*F54 -> 332830845.6 | L54: =IF(ISBLANK('3. Data_Input_Sheet'!U62),L22,'3. Data_Input_Sheet'!U62) -> 0.0893 | P54: =L54*J54 -> 29721794.52
B55: 12 | D55: Preferred Shares | F55: =IF(ISBLANK('3. Data_Input_Sheet'!U56),F39,'3. Data_Input_Sheet'!U56) -> 0 | J55: =$J$58*F55 -> 0 | L55: =IF(ISBLANK('3. Data_Input_Sheet'!U63),L23,'3. Data_Input_Sheet'!U63) -> 0 | P55: =L55*J55 -> 0
B56: 13 | D56: Total Equity | F56: =SUM(F54:F55) -> 0.4 | J56: =SUM(J54:J55) -> 332830845.6 | L56: =IF(F56=0,0,SUMPRODUCT(F54:F55,L54:L55)/F56) -> 0.0893 | P56: =SUM(P54:P55) -> 29721794.52
B58: 14 | D58: Total | F58: =F51+F56 -> 1 | J58: ='4. Rate_Base'!W17 -> 832077114.1 | L58: =(L51*F51)+(L56*F56) -> 0.0597665161 | P58: =P51+P56 -> 49730350.24
B61: Notes
B62: (1) | D62: ='3. Data_Input_Sheet'!C68 -> 4.0% unless an Applicant has proposed or been approved for another amount.

Sheet 8. Rev_Def_Suff
P1: =CONCATENATE('2. Table of Contents'!$F$6," ",'2. Table of Contents'!$G$6) -> 
F10: Initial Application | J10: =IF(ISBLANK('3. Data_Input_Sheet'!M10:M11),"",'3. Data_Input_Sheet'!M10:M11) -> Settlement Agreement | N10: ='3. Data_Input_Sheet'!U10 -> Per Board Decision
B12: Line No. | D12: Particulars | F12: At Current Approved Rates | H12: At Proposed Rates | J12: At Current Approved Rates | L12: At Proposed Rates | N12: At Current Approved Rates | P12: At Proposed Rates
B16: 1 | D16: Revenue Deficiency from Below | H16: =F49 -> 7812587.768 | L16: =J49 -> 44066.53084 | P16: =N49 -> -7959166.93
B17: 2 | D17: Distribution Revenue | F17: ='3. Data_Input_Sheet'!E23 -> 162044558.2 | H17: ='3. Data_Input_Sheet'!E24-H16 -> 162058063.5 | J17: =IF(ISBLANK('3. Data_Input_Sheet'!M23),'3. Data_Input_Sheet'!E23,'3. Data_Input_Sheet'!M23) -> 162184076.2 | L17: =IF(ISBLANK('3. Data_Input_Sheet'!M24),'3. Data_Input_Sheet'!E24-L16,'3. Data_Input_Sheet'!M24-L16) -> 162183940.9 | N17: =IF(ISBLANK('3. Data_Input_Sheet'!U23),'3. Data_Input_Sheet'!M23,'3. Data_Input_Sheet'!U23) -> 162184076.2 | P17: =IF(ISBLANK('3. Data_Input_Sheet'!U24),'3. Data_Input_Sheet'!M24-P16,'3. Data_Input_Sheet'!U24-P16) -> 162183941.2
B18: 3 | D18: Other Operating Revenue Offsets - net | F18: ='5. Utility Income'!F45 -> 9062000 | H18: ='5. Utility Income'!F45 -> 9062000 | J18: ='5. Utility Income'!N45 -> 9844598.273 | L18: =J18 -> 9844598.273 | N18: ='5. Utility Income'!V45 -> 9844598.273 | P18: ='5. Utility Income'!V45 -> 9844598.273
B19: 4 | D19: Total Revenue | F19: =SUM(F17:F18) -> 171106558.2 | H19: =SUM(H16:H18) -> 178932651.3 | J19: =SUM(J17:J18) -> 172028674.5 | L19: =SUM(L16:L18) -> 172072605.7 | N19: =SUM(N17:N18) -> 172028674.5 | P19: =SUM(P16:P18) -> 164069372.6
B21: 5 | D21: Operating Expenses | F21: ='5. Utility Income'!F24 -> 122648421.6 | H21: ='5. Utility Income'!F24 -> 122648421.6 | J21: ='5. Utility Income'!N24 -> 116531431.6 | L21: ='5. Utility Income'!N24 -> 116531431.6 | N21: ='5. Utility Income'!V24 -> 112852395.4 | P21: ='5. Utility Income'!V24 -> 112852395.4
B22: 6 | D22: Deemed Interest Expense | F22: ='5. Utility Income'!F27 -> 23104981.45 | H22: ='5. Utility Income'!F27 -> 23104981.45 | J22: ='5. Utility Income'!N27 -> 22485604.41 | L22: ='5. Utility Income'!N27 -> 22485604.41 | N22: ='5. Utility Income'!V27 -> 20008555.72 | P22: ='5. Utility Income'!V27 -> 20008555.72
D23: Total Cost and Expenses | F23: =SUM(F21:F22) -> 145753403.1 | H23: =SUM(H21:H22) -> 145753403.1 | J23: =SUM(J21:J22) -> 139017036.1 | L23: =SUM(L21:L22) -> 139017036.1 | N23: =SUM(N21:N22) -> 132860951.1 | P23: =SUM(P21:P22) -> 132860951.1
B25: 7 | D25: Utility Income Before Income Taxes | F25: =F19-F23 -> 25353155.07 | H25: =H19-H23 -> 33179248.19 | J25: =J19-J23 -> 33011638.42 | L25: =L19-L23 -> 33055569.64 | N25: =N19-N23 -> 39167723.35 | P25: =P19-P23 -> 31208421.45
B27: 8 | D27: Tax Adjustments to Accounting Income per 2009 PILs | F27: ='3. Data_Input_Sheet'!E42 -> -21082904 | H27: ='3. Data_Input_Sheet'!E42 -> -21082904 | J27: =IF(ISBLANK('3. Data_Input_Sheet'!M42),'3. Data_Input_Sheet'!E42,'3. Data_Input_Sheet'!M42) -> -20849303.67 | L27: =IF(ISBLANK('3. Data_Input_Sheet'!M42),'3. Data_Input_Sheet'!E42,'3. Data_Input_Sheet'!M42) -> -20849303.67 | N27: =IF(ISBLANK('3. Data_Input_Sheet'!U42),'3. Data_Input_Sheet'!M42,'3. Data_Input_Sheet'!U42) -> -22732304 | P27: =IF(ISBLANK('3. Data_Input_Sheet'!U42),'3. Data_Input_Sheet'!M42,'3. Data_Input_Sheet'!U42) -> -22732304
B28: 9 | D28: Taxable Income | F28: =SUM(F25:F27) -> 4270251.066 | H28: =SUM(H25:H27) -> 12096344.19 | J28: =SUM(J25+J27) -> 12162334.75 | L28: =L25+L27 -> 12206265.97 | N28: =SUM(N25+N27) -> 16435419.35 | P28: =P25+P27 -> 8476117.452
B30: 10 | D30: Income Tax Rate | F30: ='6. Taxes_PILs'!G39 -> 0.2613673277 | H30: ='6. Taxes_PILs'!G39 -> 0.2613673277 | J30: ='6. Taxes_PILs'!K39 -> 0.2614038391 | L30: ='6. Taxes_PILs'!K39 -> 0.2614038391 | N30: ='6. Taxes_PILs'!O39 -> 0.2599924822 | P30: ='6. Taxes_PILs'!O39 -> 0.2599924822
B31: 11 | D31: Income Tax on Taxable Income | F31: =F28*F30 -> 1116104.11 | H31: =H28*H30 -> 3161589.155 | J31: =J28*J30 -> 3179280.996 | L31: =L28*L30 -> 3190764.786 | N31: =N28*N30 -> 4273085.473 | P31: =P28*P30 -> 2203726.815
B32: 12 | D32: Income Tax Credits | F32: ='3. Data_Input_Sheet'!E49 -> -710000 | H32: ='3. Data_Input_Sheet'!E49 -> -710000 | J32: =IF(ISBLANK('3. Data_Input_Sheet'!M49),'3. Data_Input_Sheet'!E49,'3. Data_Input_Sheet'!M49) -> -717000 | L32: =IF(ISBLANK('3. Data_Input_Sheet'!M49),'3. Data_Input_Sheet'!E49,'3. Data_Input_Sheet'!M49) -> -717000 | N32: =IF(ISBLANK('3. Data_Input_Sheet'!U49),'3. Data_Input_Sheet'!M49,'3. Data_Input_Sheet'!U49) -> -717000 | P32: =IF(ISBLANK('3. Data_Input_Sheet'!U49),'3. Data_Input_Sheet'!M49,'3. Data_Input_Sheet'!U49) -> -717000
B33: 13 | D33: Utility Net Income | F33: =F25-SUM(F31:F32) -> 24947050.96 | H33: ='5. Utility Income'!F34 -> 30717785.18 | J33: =J25-SUM(J31:J32) -> 30549357.42 | L33: ='5. Utility Income'!N34 -> 30581904.87 | N33: =N25-SUM(N31:N32) -> 35611637.88 | P33: ='5. Utility Income'!V34 -> 29721794.56
B35: 14 | D35: Utility Rate Base | F35: ='4. Rate_Base'!G17 -> 842041763.6 | H35: ='4. Rate_Base'!G17 -> 842041763.6 | J35: ='4. Rate_Base'!O17 -> 838319758.6 | L35: ='4. Rate_Base'!O17 -> 838319758.6 | N35: ='4. Rate_Base'!W17 -> 832077114.1 | P35: ='4. Rate_Base'!W17 -> 832077114.1
D37: Deemed Equity Portion of Rate Base | F37: ='7. Cost_of_Capital'!J24 -> 336816705.5 | H37: =F37 -> 336816705.5 | J37: ='7. Cost_of_Capital'!J40 -> 335327903.5 | L37: =J37 -> 335327903.5 | N37: ='7. Cost_of_Capital'!J56 -> 332830845.6 | P37: =N37 -> 332830845.6
B39: 15 | D39: Income/(Equity Portion of Rate Base) | F39: =IF(F37=0,0,F33/F37) -> 0.07406714261 | H39: =IF(H37=0,0,H33/H37) -> 0.09120030177 | J39: =IF(J37=0,0,J33/J37) -> 0.09110293868 | L39: =IF(L37=0,0,L33/L37) -> 0.09120000023 | N39: =IF(N37=0,0,N33/N37) -> 0.1069962065 | P39: =IF(P37=0,0,P33/P37) -> 0.08930000014
B40: 16 | D40: Target Return - Equity on Rate Base | F40: ='7. Cost_of_Capital'!L24 -> 0.0912 | H40: ='7. Cost_of_Capital'!L24 -> 0.0912 | J40: ='7. Cost_of_Capital'!L40 -> 0.0912 | L40: ='7. Cost_of_Capital'!L40 -> 0.0912 | N40: ='7. Cost_of_Capital'!L56 -> 0.0893 | P40: ='7. Cost_of_Capital'!L56 -> 0.0893
B41: 17 | D41: Deficiency/Sufficiency in Return on Equity | F41: =F39-F40 -> -0.01713285739 | H41: =H39-H40 -> 3.017678595e-07 | J41: =J39-J40 -> -9.706132465e-05 | L41: =L39-L40 -> 2.272481509e-10 | N41: =N39-N40 -> 0.01769620647 | P41: =P39-P40 -> 1.391960436e-10
B43: 18 | D43: Indicated Rate of Return | F43: =IF(F35=0,0,(F33+F22)/F35) -> 0.05706609159 | H43: =IF(H35=0,0,(H33+H22)/H35) -> 0.06391935526 | J43: =IF(J35=0,0,(J33+J22)/J35) -> 0.06326340431 | L43: =IF(L37=0,0,(L33+L22)/L35) -> 0.06330222893 | N43: =IF(N35=0,0,(N33+N22)/N35) -> 0.06684499869 | P43: =IF(P37=0,0,(P33+P22)/P35) -> 0.05976651616
B44: 19 | D44: Requested Rate of Return on Rate Base | F44: ='7. Cost_of_Capital'!L26 -> 0.06391923455 | H44: ='7. Cost_of_Capital'!L26 -> 0.06391923455 | J44: ='7. Cost_of_Capital'!L42 -> 0.06330222884 | L44: ='7. Cost_of_Capital'!L42 -> 0.06330222884 | N44: ='7. Cost_of_Capital'!L58 -> 0.0597665161 | P44: ='7. Cost_of_Capital'!L58 -> 0.0597665161
B45: 20 | D45: Deficiency/Sufficiency in Rate of Return | F45: =F43-F44 -> -0.006853142956 | H45: =H43-H44 -> 1.207071438e-07 | J45: =J43-J44 -> -3.882452986e-05 | L45: =L43-L44 -> 9.089924646e-11 | N45: =N43-N44 -> 0.007078482588 | P45: =P43-P44 -> 5.567841327e-11
B47: 21 | D47: Target Return on Equity | F47: =H47 -> 30717683.54 | H47: ='7. Cost_of_Capital'!P24 -> 30717683.54 | J47: =L47 -> 30581904.79 | L47: ='7. Cost_of_Capital'!P40 -> 30581904.79 | N47: =P47 -> 29721794.52 | P47: ='7. Cost_of_Capital'!P56 -> 29721794.52
B48: 22 | D48: Revenue Deficiency/(Sufficiency) | F48: =F47-F33 -> 5770632.581 | H48: =H35*H45 -> 101.6404562 | J48: =J47-J33 -> 32547.3705 | L48: =L35*L45 -> 0.07620263435 | N48: =N47-N33 -> -5889843.364 | P48: =P35*P45 -> 0.04632873343
B49: 23 | D49: Gross Revenue Deficiency/(Sufficiency) | F49: =F48/(1-F30) -> 7812587.768 | G49: (1) | J49: =J48/(1-J30) -> 44066.53084 | K49: (1) | N49: =N48/(1-N30) -> -7959166.93 | O49: (1)
B52: Notes:
B53: (1) | D53: Revenue Deficiency/Sufficiency divided by (1 - Tax Rate)

Sheet 9. Rev_Reqt
B10: Line No. | D10: Particulars | F10: Application | J10: =IF(ISBLANK('3. Data_Input_Sheet'!M10:M11),"",'3. Data_Input_Sheet'!M10:M11) -> Settlement Agreement | N10: ='3. Data_Input_Sheet'!U10 -> Per Board Decision
B12: 1 | D12: OM&A Expenses | F12: ='5. Utility Income'!F19 -> 84245961 | J12: ='5. Utility Income'!N19 -> 78204961 | N12: ='5. Utility Income'!V19 -> 78204961
B13: 2 | D13: Amortization/Depreciation | F13: ='5. Utility Income'!F20 -> 36607421.64 | J13: ='5. Utility Income'!N20 -> 36531431.64 | N13: ='5. Utility Income'!V20 -> 32852395.4
B14: 3 | D14: Property Taxes | F14: ='5. Utility Income'!F21 -> 1795039 | J14: ='5. Utility Income'!N21 -> 1795039 | N14: ='5. Utility Income'!V21 -> 1795039
B15: 4 | D15: Capital Taxes | F15: ='6. Taxes_PILs'!G23 -> 0 | J15: ='6. Taxes_PILs'!K23 -> 0 | N15: ='6. Taxes_PILs'!O23 -> 0
B16: 5 | D16: Income Taxes (Grossed up) | F16: ='6. Taxes_PILs'!G31-F15 -> 2461463.009 | J16: ='6. Taxes_PILs'!K31-J15 -> 2473664.771 | N16: ='6. Taxes_PILs'!O31-N15 -> 1486626.89
B17: 6 | D17: Other Expenses | F17: ='5. Utility Income'!F23 -> 0 | J17: ='5. Utility Income'!N23 ->  | N17: ='5. Utility Income'!V23 -> 
B18: 7 | D18: Return
D19: Deemed Interest Expense | F19: ='8. Rev_Def_Suff'!F22 -> 23104981.45 | J19: ='8. Rev_Def_Suff'!L22 -> 22485604.41 | N19: ='8. Rev_Def_Suff'!P22 -> 20008555.72
D20: Return on Deemed Equity | F20: ='8. Rev_Def_Suff'!F47 -> 30717683.54 | J20: ='8. Rev_Def_Suff'!L47 -> 30581904.79 | N20: ='8. Rev_Def_Suff'!P47 -> 29721794.52
B22: 8 | D22: Service Revenue Requirement (before Revenues) | F22: =SUM(F12:F20) -> 178932549.6 | J22: =SUM(J12:J20) -> 172072605.6 | N22: =SUM(N12:O20) -> 164069372.5
B24: 9 | D24: Revenue Offsets | F24: ='3. Data_Input_Sheet'!E31 -> 9062000 | J24: ='3. Data_Input_Sheet'!M31 -> 9844598.273 | N24: ='3. Data_Input_Sheet'!U31 -> 9844598.273
B25: 10 | D25: Base Revenue Requirement | F25: =F22-F24 -> 169870549.6 | J25: =J22-J24 -> 162228007.3 | N25: =N22-N24 -> 154224774.3
B27: 11 | D27: Distribution revenue | F27: ='5. Utility Income'!F13 -> 169870651.3 | J27: ='5. Utility Income'!N13 -> 162228007.4 | N27: ='5. Utility Income'!V13 -> 154224774.3
B28: 12 | D28: Other revenue | F28: ='5. Utility Income'!F14 -> 9062000 | J28: ='5. Utility Income'!N14 -> 9844598.273 | N28: ='5. Utility Income'!V14 -> 9844598.273
F29: =SUM(F27:F28) -> 178932651.3 | J29: =SUM(J27:J28) -> 172072605.7 | N29: =SUM(N27:N28) -> 164069372.6
B30: 13 | D30: Total revenue
F31: =F29-F22 -> 101.6404562 | J31: =J29-J22 -> 0.0762026608 | N31: =N29-N22 -> 0.04632872343
B32: 14 | D32: Difference (Total Revenue Less Distribution Revenue Requirement before Revenues) | H32: (1) | L32: (1) | Q32: (1)
B34: Notes
B35: (1) | D35: Line 11 - Line 8

Sheet 10A. Bill Impacts - Res (1)
Q1: =CONCATENATE('2. Table of Contents'!$F$6," ",'2. Table of Contents'!$G$6) ->  | W1: 1
B8: monthly
B9: per kWh | F9: Consumption | H9: 800 | I9: kWh
B10: per kW
H11: Current Board-Approved | L11: Proposed | P11: Impact
F12: Charge Unit | H12: Rate | I12: Volume | J12: Charge | L12: Rate | M12: Volume | N12: Charge | P12: $ Change | Q12: % Change
H13: ($) | J13: ($) | L13: ($) | N13: ($)
B14: 1 | D14: Monthly Service Charge | F14: monthly | H14: 11.99 | I14: 1 | J14: =I14*H14 -> 11.99 | L14: 12.34 | M14: 1 | N14: =M14*L14 -> 12.34 | P14: =N14-J14 -> 0.35 | Q14: =IF((J14)=0,"",(P14/J14)) -> 0.02919099249
B15: 2 | D15: Smart Meter Rate Adder | F15: monthly | H15: 1.28 | I15: 1 | J15: =I15*H15 -> 1.28 | M15: 1 | N15: =M15*L15 -> 0 | P15: =N15-J15 -> -1.28 | Q15: =IF((J15)=0,"",(P15/J15)) -> -1
B16: 3 | D16: Service Charge Rate Adder(s) | F16: monthly | I16: 1 | J16: 0 | L16: 0.2 | M16: 1 | N16: =M16*L16 -> 0.2 | P16: =N16-J16 -> 0.2 | Q16: =IF((J16)=0,"",(P16/J16)) -> 
B17: 4 | D17: Service Charge Rate Rider(s) | F17: monthly | H17: 0.14 | I17: 1 | J17: 0.14 | L17: -0.04 | M17: 1 | N17: -0.04 | P17: -0.18 | Q17: -1.285714286
B18: 5 | D18: Distribution Volumetric Rate | F18: per kWh | H18: 0.0135 | I18: =H9 -> 800 | J18: 10.8 | L18: 0.0136 | M18: =H9 -> 800 | N18: 10.88 | P18: 0.08 | Q18: 0.007407407407
B19: 6 | D19: Low Voltage Rate Adder | F19: per kWh | H19: 0.0001 | I19: =I18 -> 800 | J19: 0.08 | L19: 0.0003 | M19: =M18 -> 800 | N19: 0.24 | P19: 0.16 | Q19: 2
B20: 7 | D20: Volumetric Rate Adder(s) | F20: per kWh | H20: -0.0004 | I20: 800 | J20: -0.32 | M20: 800 | N20: 0 | P20: 0.32 | Q20: -1
B21: 8 | D21: Volumetric Rate Rider(s) | I21: 800 | J21: 0 | M21: 800 | N21: 0 | P21: 0
B22: 9 | D22: Smart Meter Disposition Rider | I22: 800 | J22: 0 | M22: 800 | N22: 0 | P22: 0
B23: 10 | D23: LRAM & SSM Rate Rider | I23: 800 | J23: 0 | M23: 800 | N23: 0 | P23: 0
B24: 11 | D24: Deferral/Variance Account Disposition Rate Rider | I24: 800 | J24: 0 | L24: -0.0019 | M24: 800 | N24: -1.52 | P24: -1.52
B25: 12 | D25: Stranded Assets Rate Rider | J25: 0 | L25: 0.0014 | M25: =M24 -> 800 | N25: 1.12 | P25: 1.12
B26: 13 | J26: 0 | N26: 0 | P26: 0
B27: 14 | J27: 0 | N27: 0 | P27: 0
B28: 15 | J28: 0 | N28: 0 | P28: 0
B29: 16 | D29: Sub-Total A - Distribution | J29: =SUM(J14:J28) -> 23.97 | N29: =SUM(N14:N28) -> 23.22 | P29: -0.75 | Q29: -0.03128911139
B30: 17 | D30: RTSR - Network | F30: per kWh | H30: 0.0073 | I30: =H9*(1+H47) -> 823.92 | J30: 6.014616 | L30: 0.0071 | M30: =H9*(1+L47) -> 827.6 | N30: =M30*L30 -> 5.87596 | P30: -0.138656 | Q30: -0.0230531758
B31: 18 | D31: RTSR - Line and Transformation Connection | F31: per kWh | H31: 0.0027 | I31: =I30 -> 823.92 | J31: 2.224584 | L31: 0.0032 | M31: =M30 -> 827.6 | N31: =M31*L31 -> 2.64832 | P31: 0.423736 | Q31: 0.1904787592
B32: 19 | D32: Sub-Total B - Delivery (including Sub-Total A) | J32: =SUM(J29:J31) -> 32.2092 | N32: =SUM(N29:N31) -> 31.74428 | P32: -0.46492 | Q32: -0.01443438521
B33: 20 | D33: Wholesale Market Service Charge (WMSC) | F33: per kWh | H33: 0.0052 | I33: =I31 -> 823.92 | J33: 4.284384 | L33: 0.0052 | M33: =IF(W1=2, H9*(1+H47), H9*(1+L47)) -> 827.6 | N33: =M33*L33 -> 4.30352 | P33: 0.019136 | Q33: 0.004466453054
B34: 21 | D34: Rural and Remote Rate Protection (RRRP) | F34: per kWh | H34: 0.0011 | I34: =I31 -> 823.92 | J34: 0.906312 | L34: 0.0011 | M34: =IF(W1=2, H9*(1+H47), H9*(1+L47)) -> 827.6 | N34: 0.91036 | P34: 0.004048 | Q34: 0.004466453054
B35: 22 | D35: Special Purpose Charge | F35: per kWh | H35: 0 | I35: =I31 -> 823.92 | J35: =I35*H35 -> 0 | L35: 0 | M35: =IF(W1=2, H9*(1+H47), H9*(1+L47)) -> 827.6 | N35: =M35*L35 -> 0 | P35: =N35-J35 -> 0 | Q35: =IF((J35)=0,"",(P35/J35)) -> 
B36: 23 | D36: Standard Supply Service Charge | F36: monthly | H36: 0.25 | I36: 1 | J36: 0.25 | L36: 0.25 | M36: 1 | N36: 0.25 | P36: 0 | Q36: 0
B37: 24 | D37: Debt Retirement Charge (DRC) | F37: per kWh | H37: 0.007 | I37: =H9 -> 800 | J37: 5.6 | L37: 0.007 | M37: =H9 -> 800 | N37: 5.6 | P37: 0 | Q37: 0
B38: 25 | D38: Energy | F38: per kWh | H38: 0.0761621 | I38: =I35 -> 823.92 | J38: 62.75147743 | L38: =H38 -> 0.0761621 | M38: =IF(W1=2, H9*(1+H47), H9*(1+L47)) -> 827.6 | N38: 63.03175396 | P38: 0.280276528 | Q38: 0.004466453054
B39: 26 | F39: per kWh | J39: 0 | N39: 0 | P39: 0
B40: 27 | J40: 0 | N40: 0 | P40: 0
B41: 28 | D41: Total Bill (before Taxes) | J41: =SUM(J32:J40) -> 106.0013734 | N41: =SUM(N32:N40) -> 105.839914 | P41: -0.161459472 | Q41: -0.00152318283
B42: 29 | D42: HST | H42: 0.13 | J42: =J41*H42 -> 13.78017855 | L42: 0.13 | N42: =N41*L42 -> 13.75918881 | P42: -0.02098973136 | Q42: -0.00152318283
B43: 30 | D43: Total Bill (including Sub-total B) | J43: =ROUND(SUM(J41:J42),2) -> 119.78 | N43: =ROUND(SUM(N41:N42),2) -> 119.6 | P43: -0.18 | Q43: -0.001502755051
B44: 31 | D44: Ontario Clean Energy Benefit (OCEB) | H44: -0.1 | J44: =ROUND(-J43*10%,2) -> -11.98 | L44: -0.1 | N44: =ROUND(-N43*10%,2) -> -11.96 | P44: =N44-J44 -> 0.02 | Q44: =IF((J44)=0,"",(P44/J44)) -> -0.001669449082
B45: 32 | D45: Total Bill (including OCEB) | J45: =J43+J44 -> 107.8 | N45: =N43+N44 -> 107.64 | P45: =N45-J45 -> -0.16 | Q45: =IF((J45)=0,"",(P45/J45)) -> -0.001484230056
B47: 33 | D47: Loss Factor (%) | F47: Note 1 | H47: 0.0299 | L47: 0.0345
B49: Notes:
B50: (1): Enter existing and proposed total loss factor (Secondary Metered Customer < 5,000 kW) as a percentage.
B51: (2) The weighted average commodity charge is used in this template, so the results will be comparable with
B52: the calculation when two tier prices are used.There is a small rounding difference to Appendix 2-V.
B53: (3) These Bill Impacts are for PowerStream South rate zone

Sheet 10A. Bill Impacts - Res (2)
Q1: =CONCATENATE('2. Table of Contents'!$F$6," ",'2. Table of Contents'!$G$6) ->  | W1: 1
B8: monthly
B9: per kWh | F9: Consumption | H9: 800 | I9: kWh
B10: per kW
H11: Current Board-Approved | L11: Proposed | P11: Impact
F12: Charge Unit | H12: Rate | I12: Volume | J12: Charge | L12: Rate | M12: Volume | N12: Charge | P12: $ Change | Q12: % Change
H13: ($) | J13: ($) | L13: ($) | N13: ($)
B14: 1 | D14: Monthly Service Charge | F14: monthly | H14: 15.34 | I14: 1 | J14: =I14*H14 -> 15.34 | L14: 12.34 | M14: 1 | N14: =M14*L14 -> 12.34 | P14: =N14-J14 -> -3 | Q14: =IF((J14)=0,"",(P14/J14)) -> -0.1955671447
B15: 2 | D15: Smart Meter Rate Adder | F15: monthly | I15: 1 | J15: 0 | M15: 1 | N15: 0 | P15: 0
B16: 3 | D16: Service Charge Rate Adder(s) | F16: monthly | I16: 1 | J16: 0 | L16: 0.2 | M16: 1 | N16: 0.2 | P16: 0.2
B17: 4 | D17: Service Charge Rate Rider(s) | F17: monthly | H17: 1.78 | I17: 1 | J17: 1.78 | L17: -0.04 | M17: 1 | N17: -0.04 | P17: -1.82 | Q17: -1.02247191
B18: 5 | D18: Distribution Volumetric Rate | F18: per kWh | H18: 0.0137 | I18: =H9 -> 800 | J18: 10.96 | L18: 0.0136 | M18: =H9 -> 800 | N18: 10.88 | P18: -0.08 | Q18: -0.007299270073
B19: 6 | D19: Low Voltage Rate Adder | F19: per kWh | H19: 0.0008 | I19: =I18 -> 800 | J19: 0.64 | L19: 0.0003 | M19: =M18 -> 800 | N19: 0.24 | P19: -0.4 | Q19: -0.625
B20: 7 | D20: Volumetric Rate Adder(s) | F20: per kWh | I20: 800 | J20: 0 | M20: 800 | N20: 0 | P20: 0
B21: 8 | D21: Volumetric Rate Rider(s) | F21: per kWh | H21: -0.0006 | I21: 800 | J21: -0.48 | M21: 800 | N21: 0 | P21: 0.48 | Q21: -1
B22: 9 | D22: Smart Meter Disposition Rider | F22: per kWh | I22: 800 | J22: 0 | M22: 800 | N22: 0 | P22: 0
B23: 10 | D23: LRAM & SSM Rate Rider | F23: per kWh | H23: 0.0004 | I23: 800 | J23: 0.32 | L23: 0.0004 | M23: 800 | N23: 0.32 | P23: 0 | Q23: 0
B24: 11 | D24: Deferral/Variance Account Disposition Rate Rider | F24: per kWh | H24: -0.0006 | I24: 800 | J24: -0.48 | L24: -0.0021 | M24: 800 | N24: -1.68 | P24: -1.2 | Q24: 2.5
B25: 12 | D25: Stranded Assets Rate Rider | F25: per kWh | J25: 0 | L25: 0.0017 | M25: =M24 -> 800 | N25: 1.36 | P25: 1.36
B26: 13 | J26: 0 | N26: 0 | P26: 0
B27: 14 | J27: 0 | N27: 0 | P27: 0
B28: 15 | J28: 0 | N28: 0 | P28: 0
B29: 16 | D29: Sub-Total A - Distribution | J29: =SUM(J14:J28) -> 28.08 | N29: =SUM(N14:N28) -> 23.62 | P29: -4.46 | Q29: -0.1588319088
B30: 17 | D30: RTSR - Network | F30: per kWh | H30: 0.0069 | I30: =H9*(1+H47) -> 845.2 | J30: =I30*H30 -> 5.83188 | L30: 0.0071 | M30: =H9*(1+L47) -> 827.6 | N30: =M30*L30 -> 5.87596 | P30: 0.04408 | Q30: 0.007558454564
B31: 18 | D31: RTSR - Line and Transformation Connection | F31: per kWh | H31: 0.0054 | I31: =I30 -> 845.2 | J31: =I31*H31 -> 4.56408 | L31: 0.0032 | M31: =M30 -> 827.6 | N31: =M31*L31 -> 2.64832 | P31: -1.91576 | Q31: -0.4197472437
B32: 19 | D32: Sub-Total B - Delivery (including Sub-Total A) | J32: =SUM(J29:J31) -> 38.47596 | N32: =SUM(N29:N31) -> 32.14428 | P32: -6.33168 | Q32: -0.1645619758
B33: 20 | D33: Wholesale Market Service Charge (WMSC) | F33: per kWh | H33: 0.0052 | I33: =I31 -> 845.2 | J33: =I33*H33 -> 4.39504 | L33: =H33 -> 0.0052 | M33: =IF(W1=2, H9*(1+H47), H9*(1+L47)) -> 827.6 | N33: =M33*L33 -> 4.30352 | P33: -0.09152 | Q33: -0.02082347373
B34: 21 | D34: Rural and Remote Rate Protection (RRRP) | F34: per kWh | H34: 0.0011 | I34: =I31 -> 845.2 | J34: 0.92972 | L34: 0.0011 | M34: =IF(W1=2, H9*(1+H47), H9*(1+L47)) -> 827.6 | N34: 0.91036 | P34: -0.01936 | Q34: -0.02082347373
B35: 22 | D35: Special Purpose Charge | F35: per kWh | I35: =I31 -> 845.2 | J35: 0 | L35: 0 | M35: =IF(W1=2, H9*(1+H47), H9*(1+L47)) -> 827.6 | N35: 0 | P35: 0
B36: 23 | D36: Standard Supply Service Charge | F36: monthly | H36: 0.25 | I36: 1 | J36: 0.25 | L36: 0.25 | M36: 1 | N36: 0.25 | P36: 0 | Q36: 0
B37: 24 | D37: Debt Retirement Charge (DRC) | F37: per kWh | H37: 0.007 | I37: =H9 -> 800 | J37: 5.6 | L37: 0.007 | M37: =H9 -> 800 | N37: 5.6 | P37: 0 | Q37: 0
B38: 25 | D38: Energy | F38: per kWh | H38: 0.076466 | I38: =I35 -> 845.2 | J38: 64.6290632 | L38: 0.076466 | M38: =IF(W1=2, H9*(1+H47), H9*(1+L47)) -> 827.6 | N38: 63.2832616 | P38: -1.3458016 | Q38: -0.02082347373
B39: 26 | J39: 0 | N39: 0 | P39: 0
B40: 27 | J40: 0 | N40: 0 | P40: 0
B41: 28 | D41: Total Bill (before Taxes) | J41: =SUM(J32:J40) -> 114.2797832 | N41: =SUM(N32:N40) -> 106.4914216 | P41: -7.7883616 | Q41: -0.06815170087
B42: 29 | D42: HST | H42: 0.13 | J42: =J41*H42 -> 14.85637182 | L42: 0.13 | N42: =N41*L42 -> 13.84388481 | P42: -1.012487008 | Q42: -0.06815170087
B43: 30 | D43: Total Bill (including Sub-total B) | J43: =ROUND(SUM(J41:J42),2) -> 129.14 | N43: =ROUND(SUM(N41:N42),2) -> 120.34 | P43: -8.8 | Q43: -0.06814310051
B44: 31 | D44: Ontario Clean Energy Benefit (OCEB) | H44: -0.1 | J44: =ROUND(-J43*10%,2) -> -12.91 | L44: -0.1 | N44: =ROUND(-N43*10%,2) -> -12.03 | P44: 0.88 | Q44: -0.06816421379
B45: 32 | D45: Total Bill (including OCEB) | J45: =J43+J44 -> 116.23 | N45: =N43+N44 -> 108.31 | P45: -7.92 | Q45: -0.0681407554
B47: 33 | D47: Loss Factor (%) | F47: Note 1 | H47: 0.0565 | L47: 0.0345
B49: Notes:
B50: (1): Enter existing and proposed total loss factor (Secondary Metered Customer < 5,000 kW) as a percentage.
B51: (2) The weighted average commodity charge is used in this template, so the results will be comparable with
B52: the calculation when two tier prices are used. There is a small rounding difference to Appendix 2-V.
B53: (3) These Bill Impacts are for PowerStream Barrie rate zone

Sheet 10B. Bill Impacts -GS_LT_50 (1)
Q1: =CONCATENATE('2. Table of Contents'!$F$6," ",'2. Table of Contents'!$G$6) ->  | W1: 1
B8: monthly
B9: per kWh | F9: Consumption | H9: 2000 | I9: kWh
B10: per kW
H11: Current Board-Approved | L11: Proposed | P11: Impact
F12: Charge Unit | H12: Rate | I12: Volume | J12: Charge | L12: Rate | M12: Volume | N12: Charge | P12: $ Change | Q12: % Change
H13: ($) | J13: ($) | L13: ($) | N13: ($)
B14: 1 | D14: Monthly Service Charge | F14: monthly | H14: 28.64 | I14: 1 | J14: =I14*H14 -> 28.64 | L14: 25.39 | M14: 1 | N14: =M14*L14 -> 25.39 | P14: =N14-J14 -> -3.25 | Q14: =IF((J14)=0,"",(P14/J14)) -> -0.1134776536
B15: 2 | D15: Smart Meter Rate Adder | F15: monthly | H15: 1.01 | I15: 1 | J15: 1.01 | M15: 1 | N15: 0 | P15: -1.01 | Q15: -1
B16: 3 | D16: Service Charge Rate Adder(s) | F16: monthly | I16: 1 | J16: 0 | L16: 0.55 | M16: 1 | N16: 0.55 | P16: 0.55
B17: 4 | D17: Service Charge Rate Rider(s) | F17: monthly | H17: 3.37 | I17: 1 | J17: 3.37 | L17: 0.22 | M17: 1 | N17: 0.22 | P17: -3.15 | Q17: -0.9347181009
B18: 5 | D18: Distribution Volumetric Rate | F18: per kWh | H18: 0.0116 | I18: =H9 -> 2000 | J18: 23.2 | L18: 0.0135 | M18: =H9 -> 2000 | N18: 27 | P18: 3.8 | Q18: 0.1637931034
B19: 6 | D19: Low Voltage Rate Adder | F19: per kWh | H19: 0.0001 | I19: =I18 -> 2000 | J19: 0.2 | L19: 0.0003 | M19: =M18 -> 2000 | N19: 0.6 | P19: 0.4 | Q19: 2
B20: 7 | D20: Volumetric Rate Adder(s) | F20: per kWh | I20: 2000 | J20: 0 | M20: 2000 | N20: 0 | P20: 0
B21: 8 | D21: Volumetric Rate Rider(s) | F21: per kWh | H21: -0.0003 | I21: 2000 | J21: -0.6 | M21: 2000 | N21: 0 | P21: 0.6 | Q21: -1
B22: 9 | D22: Smart Meter Disposition Rider | F22: per kWh | I22: 2000 | J22: 0 | M22: 2000 | N22: 0 | P22: 0
B23: 10 | D23: LRAM & SSM Rider | F23: per kWh | I23: 2000 | J23: 0 | M23: 2000 | N23: 0 | P23: 0
B24: 11 | D24: Deferral/Variance Account Disposition Rate Rider | F24: per kWh | I24: 2000 | J24: 0 | L24: -0.0018 | M24: 2000 | N24: -3.6 | P24: -3.6
B25: 12 | D25: Stranded Assets Rate Rider | J25: 0 | L25: 0.0017 | M25: =M24 -> 2000 | N25: 3.4 | P25: 3.4
B26: 13 | J26: 0 | N26: 0 | P26: 0
B27: 14 | J27: 0 | N27: 0 | P27: 0
B28: 15 | J28: 0 | N28: 0 | P28: 0
B29: 16 | D29: Sub-Total A - Distribution | J29: =SUM(J14:J28) -> 55.82 | N29: =SUM(N14:N28) -> 53.56 | P29: -2.26 | Q29: -0.04048728054
B30: 17 | D30: RTSR - Network | F30: per kWh | H30: 0.0066 | I30: =H9*(1+H47) -> 2059.8 | J30: =I30*H30 -> 13.59468 | L30: 0.0065 | M30: =H9*(1+L47) -> 2069 | N30: =M30*L30 -> 13.4485 | P30: -0.14618 | Q30: -0.01075273563
B31: 18 | D31: RTSR - Line and Transformation Connection | F31: per kWh | H31: 0.0024 | I31: =I30 -> 2059.8 | J31: =I31*H31 -> 4.94352 | L31: 0.0028 | M31: =M30 -> 2069 | N31: =M31*L31 -> 5.7932 | P31: 0.84968 | Q31: 0.1718775286
B32: 19 | D32: Sub-Total B - Delivery (including Sub-Total A) | J32: =SUM(J29:J31) -> 74.3582 | N32: =SUM(N29:N31) -> 72.8017 | P32: -1.5565 | Q32: -0.02093245937
B33: 20 | D33: Wholesale Market Service Charge (WMSC) | F33: per kWh | H33: 0.0052 | I33: =I31 -> 2059.8 | J33: =I33*H33 -> 10.71096 | L33: 0.0052 | M33: =IF(W1=2, H9*(1+H47), H9*(1+L47)) -> 2069 | N33: =M33*L33 -> 10.7588 | P33: 0.04784 | Q33: 0.004466453054
B34: 21 | D34: Rural and Remote Rate Protection (RRRP) | F34: per kWh | H34: 0.0011 | I34: =I31 -> 2059.8 | J34: 2.26578 | L34: 0.0011 | M34: =IF(W1=2, H9*(1+H47), H9*(1+L47)) -> 2069 | N34: 2.2759 | P34: 0.01012 | Q34: 0.004466453054
B35: 22 | D35: Special Purpose Charge | F35: per kWh | I35: =I31 -> 2059.8 | J35: 0 | M35: =IF(W1=2, H9*(1+H47), H9*(1+L47)) -> 2069 | N35: 0 | P35: 0
B36: 23 | D36: Standard Supply Service Charge | F36: monthly | H36: 0.25 | I36: 1 | J36: 0.25 | L36: 0.25 | M36: 1 | N36: 0.25 | P36: 0 | Q36: 0
B37: 24 | D37: Debt Retirement Charge (DRC) | F37: per kWh | H37: 0.007 | I37: =H9 -> 2000 | J37: 14 | L37: 0.007 | M37: =H9 -> 2000 | N37: 14 | P37: 0 | Q37: 0
B38: 25 | D38: Energy | F38: per kWh | H38: 0.08326 | I38: =I35 -> 2059.8 | J38: 171.498948 | L38: 0.08326 | M38: =IF(W1=2, H9*(1+H47), H9*(1+L47)) -> 2069 | N38: 172.26494 | P38: 0.765992 | Q38: 0.004466453054
B39: 26 | J39: =I39*H39 -> 0 | N39: 0 | P39: 0
B40: 27 | J40: =I40*H40 -> 0 | N40: 0 | P40: 0
B41: 28 | D41: Total Bill (before Taxes) | J41: =SUM(J32:J40) -> 273.083888 | N41: =SUM(N32:N40) -> 272.35134 | P41: -0.732548 | Q41: -0.002682501723
B42: 29 | D42: HST | H42: ='10A. Bill Impacts - Res (1)'!H42 -> 0.13 | J42: =J41*H42 -> 35.50090544 | L42: ='10A. Bill Impacts - Res (1)'!L42 -> 0.13 | N42: =N41*L42 -> 35.4056742 | P42: -0.09523124 | Q42: -0.002682501723
B43: 30 | D43: Total Bill (including Sub-total B) | J43: =ROUND(SUM(J41:J42),2) -> 308.58 | N43: =ROUND(SUM(N41:N42),2) -> 307.76 | P43: -0.82 | Q43: -0.002657333593
B44: 31 | D44: Ontario Clean Energy Benefit (OCEB) | H44: -0.1 | J44: =ROUND(-J43*10%,2) -> -30.86 | L44: -0.1 | N44: =ROUND(-N43*10%,2) -> -30.78 | P44: 0.08 | Q44: -0.00259235256
B45: 32 | D45: Total Bill (including OCEB) | J45: =J43+J44 -> 277.72 | N45: =N43+N44 -> 276.98 | P45: -0.74 | Q45: -0.002664554227
B47: 33 | D47: Loss Factor | F47: (1) | H47: 0.0299 | L47: 0.0345
B49: Notes:
B50: (1): See Note (1) from Sheet 10A. Bill Impacts - Residential
B51: (2) The weighted average commodity charge is used in this template, so the results will be comparable with
B52: the calculation when two tier prices are used. There is a rounding difference to Appendix 2-V.
B53: (3) These Bill Impacts are for PowerStream South rate zone

Sheet 10B. Bill Impacts -GS_LT_50 (2)
Q1: =CONCATENATE('2. Table of Contents'!$F$6," ",'2. Table of Contents'!$G$6) ->  | W1: 1
B8: monthly
B9: per kWh | F9: Consumption | H9: 2000 | I9: kWh
B10: per kW
H11: Current Board-Approved | L11: Proposed | P11: Impact
F12: Charge Unit | H12: Rate | I12: Volume | J12: Charge | L12: Rate | M12: Volume | N12: Charge | P12: $ Change | Q12: % Change
H13: ($) | J13: ($) | L13: ($) | N13: ($)
B14: 1 | D14: Monthly Service Charge | F14: monthly | H14: 16.11 | I14: 1 | J14: =I14*H14 -> 16.11 | L14: 25.39 | M14: 1 | N14: =M14*L14 -> 25.39 | P14: =N14-J14 -> 9.28 | Q14: =IF((J14)=0,"",(P14/J14)) -> 0.5760397269
B15: 2 | D15: Smart Meter Rate Adder | F15: monthly | I15: 1 | J15: 0 | M15: 1 | N15: 0 | P15: 0
B16: 3 | D16: Service Charge Rate Adder(s) | F16: monthly | H16: 4.73 | I16: 1 | J16: 4.73 | L16: 0.55 | M16: 1 | N16: 0.55 | P16: -4.18 | Q16: -0.8837209302
B17: 4 | D17: Service Charge Rate Rider(s) | F17: monthly | I17: 1 | J17: 0 | L17: 0.22 | M17: 1 | N17: 0.22 | P17: 0.22
B18: 5 | D18: Distribution Volumetric Rate | F18: per kWh | H18: 0.0164 | I18: =H9 -> 2000 | J18: 32.8 | L18: 0.0135 | M18: =H9 -> 2000 | N18: 27 | P18: -5.8 | Q18: -0.1768292683
B19: 6 | D19: Low Voltage Rate Adder | F19: per kWh | H19: 0.0007 | I19: =I18 -> 2000 | J19: 1.4 | L19: 0.0003 | M19: =M18 -> 2000 | N19: 0.6 | P19: -0.8 | Q19: -0.5714285714
B20: 7 | D20: Volumetric Rate Adder(s) | F20: per kWh | I20: 2000 | J20: 0 | M20: 2000 | N20: 0 | P20: 0
B21: 8 | D21: Volumetric Rate Rider(s) | F21: per kWh | H21: -0.0004 | I21: 2000 | J21: -0.8 | M21: 2000 | N21: 0 | P21: 0.8 | Q21: -1
B22: 9 | D22: Smart Meter Disposition Rider | F22: per kWh | I22: 2000 | J22: 0 | M22: 2000 | N22: 0 | P22: 0
B23: 10 | D23: LRAM & SSM Rider | F23: per kWh | H23: 0.0007 | I23: 2000 | J23: 1.4 | L23: =H23 -> 0.0007 | M23: 2000 | N23: 1.4 | P23: 0 | Q23: 0
B24: 11 | D24: Deferral/Variance Account Disposition Rate Rider | F24: per kWh | H24: -0.0004 | I24: 2000 | J24: -0.8 | L24: =H24 -> -0.0004 | M24: 2000 | N24: -0.8 | P24: 0 | Q24: 0
B25: 12 | D25: Deferral/Variance Account Disposition Rate Rider | F25: per kWh | J25: 0 | L25: -0.0016 | M25: =M24 -> 2000 | N25: -3.2 | P25: -3.2
B26: 13 | D26: Stranded Assets Rate Rider | F26: per kWh | J26: 0 | L26: 0.0022 | M26: =M25 -> 2000 | N26: 4.4 | P26: 4.4
B27: 14 | J27: 0 | N27: 0 | P27: 0
B28: 15 | J28: 0 | N28: 0 | P28: 0
B29: 16 | D29: Sub-Total A - Distribution | J29: =SUM(J14:J28) -> 54.84 | N29: =SUM(N14:N28) -> 55.56 | P29: 0.72 | Q29: 0.01312910284
B30: 17 | D30: RTSR - Network | F30: per kWh | H30: 0.0063 | I30: =H9*(1+H47) -> 2113 | J30: =I30*H30 -> 13.3119 | L30: 0.0065 | M30: =H9*(1+L47) -> 2069 | N30: =M30*L30 -> 13.4485 | P30: 0.1366 | Q30: 0.01026149535
B31: 18 | D31: RTSR - Line and Transformation Connection | F31: per kWh | H31: 0.0048 | I31: =I30 -> 2113 | J31: =I31*H31 -> 10.1424 | L31: 0.0028 | M31: =M30 -> 2069 | N31: =M31*L31 -> 5.7932 | P31: -4.3492 | Q31: -0.428813693
B32: 19 | D32: Sub-Total B - Delivery (including Sub-Total A) | J32: =SUM(J29:J31) -> 78.2943 | N32: =SUM(N29:N31) -> 74.8017 | P32: -3.4926 | Q32: -0.04460861135
B33: 20 | D33: Wholesale Market Service Charge (WMSC) | F33: per kWh | H33: 0.0052 | I33: =I31 -> 2113 | J33: =I33*H33 -> 10.9876 | L33: 0.0052 | M33: =IF(W1=2, H9*(1+H47), H9*(1+L47)) -> 2069 | N33: =M33*L33 -> 10.7588 | P33: -0.2288 | Q33: -0.02082347373
B34: 21 | D34: Rural and Remote Rate Protection (RRRP) | F34: per kWh | H34: 0.0011 | I34: =I31 -> 2113 | J34: 2.3243 | L34: 0.0011 | M34: =IF(W1=2, H9*(1+H47), H9*(1+L47)) -> 2069 | N34: 2.2759 | P34: -0.0484 | Q34: -0.02082347373
B35: 22 | D35: Special Purpose Charge | F35: per kWh | I35: =I31 -> 2113 | J35: 0 | M35: =IF(W1=2, H9*(1+H47), H9*(1+L47)) -> 2069 | N35: 0 | P35: 0
B36: 23 | D36: Standard Supply Service Charge | F36: monthly | H36: 0.25 | I36: 1 | J36: 0.25 | L36: 0.25 | M36: 1 | N36: 0.25 | P36: 0 | Q36: 0
B37: 24 | D37: Debt Retirement Charge (DRC) | F37: per kWh | H37: 0.007 | I37: =H9 -> 2000 | J37: 14 | L37: 0.007 | M37: =H9 -> 2000 | N37: 14 | P37: 0 | Q37: 0
B38: 25 | D38: Energy | F38: per kWh | H38: 0.0833838 | I38: =I35 -> 2113 | J38: 176.1899694 | L38: 0.08335 | M38: =IF(W1=2, H9*(1+H47), H9*(1+L47)) -> 2069 | N38: 172.45115 | P38: -3.7388194 | Q38: -0.02122038736
B39: 26 | J39: 0 | N39: 0 | P39: 0
B40: 27 | J40: 0 | N40: 0 | P40: 0
B41: 28 | D41: Total Bill (before Taxes) | J41: =SUM(J32:J40) -> 282.0461694 | N41: =SUM(N32:N40) -> 274.53755 | P41: -7.5086194 | Q41: -0.02662195135
B42: 29 | D42: HST | H42: ='10A. Bill Impacts - Res (1)'!H42 -> 0.13 | J42: =J41*H42 -> 36.66600202 | L42: ='10A. Bill Impacts - Res (1)'!L42 -> 0.13 | N42: =N41*L42 -> 35.6898815 | P42: -0.976120522 | Q42: -0.02662195135
B43: 30 | D43: Total Bill (including Sub-total B) | J43: =ROUND(SUM(J41:J42),2) -> 318.71 | N43: =ROUND(SUM(N41:N42),2) -> 310.23 | P43: -8.48 | Q43: -0.02660726052
B44: 31 | D44: Ontario Clean Energy Benefit (OCEB) | H44: -0.1 | J44: =ROUND(-J43*10%,2) -> -31.87 | L44: -0.1 | N44: =ROUND(-N43*10%,2) -> -31.02 | P44: 0.85 | Q44: -0.02667085033
B45: 32 | D45: Total Bill (including OCEB) | J45: =J43+J44 -> 286.84 | N45: =N43+N44 -> 279.21 | P45: -7.63 | Q45: -0.02660019523
B47: 33 | D47: Loss Factor | F47: (1) | H47: 0.0565 | L47: 0.0345
B49: Notes:
B50: (1): See Note (1) from Sheet 10A. Bill Impacts - Residential
B51: (2) The weighted average commodity charge is used in this template, so the results will be comparable with
B52: the calculation when two tier prices are used. There is a rounding difference to Appendix 2-V.
B53: (3) These Bill Impacts are for PowerStream Barrie rate zone
